[Event "Early-Titled-Tuesday-Blitz-April-02-2024"]
[Site "Chess.com"]
[Date "2024.04.02"]
[Round "11"]
[White "SaiAgni_98"]
[Black "Rutricks"]
[Result "1-0"]
[WhiteElo "2534"]
[BlackElo "2675"]
[TimeControl "180+1"]
[EndTime "10:07:31 PDT"]
[Termination "SaiAgni_98 won on time"]

1. c4 {[%clk 0:03:00.9]} 1... b6 {[%clk 0:02:57.8]} 2. e4 {[%clk 0:02:53.6]}
2... Bb7 {[%clk 0:02:58.7]} 3. Nc3 {[%clk 0:02:54.1]} 3... g6 {[%clk 0:02:59.6]}
4. g3 {[%clk 0:02:52.3]} 4... Bg7 {[%clk 0:03:00.2]} 5. Bg2 {[%clk 0:02:52.8]}
5... d6 {[%clk 0:03:01.1]} 6. Nge2 {[%clk 0:02:53.2]} 6... e6 {[%clk 0:03:02]}
7. O-O {[%clk 0:02:53.8]} 7... Ne7 {[%clk 0:03:02.9]} 8. d3 {[%clk 0:02:54.2]}
8... O-O {[%clk 0:03:03.5]} 9. Be3 {[%clk 0:02:53.4]} 9... Nd7 {[%clk
0:03:04.1]} 10. Qd2 {[%clk 0:02:54]} 10... f5 {[%clk 0:03:04.5]} 11. Bh6 {[%clk
0:02:52.2]} 11... e5 {[%clk 0:03:04.9]} 12. Bxg7 {[%clk 0:02:52.1]} 12... Kxg7
{[%clk 0:03:05.6]} 13. f4 {[%clk 0:02:52.3]} 13... Nf6 {[%clk 0:02:54.1]} 14.
Rae1 {[%clk 0:02:44.1]} 14... Qd7 {[%clk 0:02:53.2]} 15. Nd5 {[%clk 0:02:31.7]}
15... Nexd5 {[%clk 0:02:37.7]} 16. exd5 {[%clk 0:02:24.3]} 16... c6 {[%clk
0:02:38]} 17. dxc6 {[%clk 0:02:09]} 17... Bxc6 {[%clk 0:02:38.9]} 18. d4 {[%clk
0:02:09.5]} 18... Bxg2 {[%clk 0:02:36]} 19. Kxg2 {[%clk 0:02:10.4]} 19... Qc6+
{[%clk 0:02:36.6]} 20. Kg1 {[%clk 0:02:07.1]} 20... Qxc4 {[%clk 0:02:03.7]} 21.
dxe5 {[%clk 0:02:00.6]} 21... dxe5 {[%clk 0:02:04.6]} 22. fxe5 {[%clk 0:01:59]}
22... Ng4 {[%clk 0:02:02.6]} 23. Qd4 {[%clk 0:01:52.9]} 23... Qxd4+ {[%clk
0:01:49.7]} 24. Nxd4 {[%clk 0:01:53.8]} 24... Rfe8 {[%clk 0:01:50.4]} 25. Nf3
{[%clk 0:01:50.8]} 25... Rad8 {[%clk 0:01:42.2]} 26. h3 {[%clk 0:01:50.7]} 26...
Nh6 {[%clk 0:01:42.9]} 27. Rc1 {[%clk 0:01:46]} 27... Re7 {[%clk 0:01:38.3]} 28.
Rfd1 {[%clk 0:01:42.7]} 28... Rxd1+ {[%clk 0:01:32.7]} 29. Rxd1 {[%clk
0:01:43.6]} 29... Nf7 {[%clk 0:01:33.4]} 30. Rd5 {[%clk 0:01:43.8]} 30... g5
{[%clk 0:01:30.6]} 31. g4 {[%clk 0:01:43.9]} 31... Kg6 {[%clk 0:01:24]} 32. Kf2
{[%clk 0:01:34.8]} 32... h5 {[%clk 0:01:24]} 33. Kg3 {[%clk 0:01:29.4]} 33...
h4+ {[%clk 0:01:11.9]} 34. Kg2 {[%clk 0:01:27.6]} 34... fxg4 {[%clk 0:01:12.8]}
35. hxg4 {[%clk 0:01:28.5]} 35... Re6 {[%clk 0:01:13.1]} 36. b4 {[%clk
0:01:25.9]} 36... a6 {[%clk 0:01:02.3]} 37. a4 {[%clk 0:01:25.9]} 37... Kg7
{[%clk 0:01:01.6]} 38. b5 {[%clk 0:01:25.3]} 38... axb5 {[%clk 0:00:58.7]} 39.
axb5 {[%clk 0:01:26.2]} 39... Kf8 {[%clk 0:00:59.2]} 40. Rd7 {[%clk 0:01:06.5]}
40... Nxe5 {[%clk 0:00:20.3]} 41. Nxg5 {[%clk 0:01:06.6]} 41... Rg6 {[%clk
0:00:20.9]} 42. Nh7+ {[%clk 0:01:01.6]} 42... Kg8 {[%clk 0:00:11.1]} 43. Rb7
{[%clk 0:00:59.8]} 43... Nf7 {[%clk 0:00:09.6]} 44. Kh3 {[%clk 0:00:58.5]} 44...
Kg7 {[%clk 0:00:04.5]} 45. g5 {[%clk 0:00:52.7]} 45... Kg8 {[%clk 0:00:01.2]}
46. Kxh4 {[%clk 0:00:50.7]} 1-0

[Event "Early-Titled-Tuesday-Blitz-April-02-2024"]
[Site "Chess.com"]
[Date "2024.04.02"]
[Round "11"]
[White "zajka-molotok"]
[Black "PIwan"]
[Result "0-1"]
[WhiteElo "2551"]
[BlackElo "2463"]
[TimeControl "180+1"]
[EndTime "10:07:31 PDT"]
[Termination "PIwan won by resignation"]

1. b3 {[%clk 0:03:00.9]} 1... e6 {[%clk 0:02:59.9]} 2. Bb2 {[%clk 0:03:01.8]}
2... d5 {[%clk 0:02:59.7]} 3. e3 {[%clk 0:03:02.2]} 3... f5 {[%clk 0:02:59.9]}
4. Nf3 {[%clk 0:03:02.8]} 4... Nf6 {[%clk 0:03:00.2]} 5. Be2 {[%clk 0:03:03.3]}
5... Bd6 {[%clk 0:02:59.7]} 6. O-O {[%clk 0:03:03.8]} 6... O-O {[%clk
0:02:59.8]} 7. d3 {[%clk 0:03:04.3]} 7... Qe7 {[%clk 0:02:59.3]} 8. Nbd2 {[%clk
0:03:04.2]} 8... e5 {[%clk 0:02:59.4]} 9. e4 {[%clk 0:03:05.1]} 9... dxe4 {[%clk
0:02:54.8]} 10. dxe4 {[%clk 0:03:05.1]} 10... fxe4 {[%clk 0:02:55.7]} 11. Ng5
{[%clk 0:03:04.2]} 11... e3 {[%clk 0:02:55.9]} 12. fxe3 {[%clk 0:02:54]} 12...
Nc6 {[%clk 0:02:55.7]} 13. Nde4 {[%clk 0:02:51.3]} 13... Bc5 {[%clk 0:02:40.1]}
14. Nxc5 {[%clk 0:02:45.7]} 14... Qxc5 {[%clk 0:02:41]} 15. Qc1 {[%clk 0:02:42]}
15... h6 {[%clk 0:02:10.8]} 16. Ba3 {[%clk 0:02:39.3]} 16... Nb4 {[%clk
0:02:02.5]} 17. c3 {[%clk 0:02:30.3]} 17... a5 {[%clk 0:01:35.6]} 18. Bc4+
{[%clk 0:02:12.7]} 18... Kh8 {[%clk 0:01:24.9]} 19. Nf7+ {[%clk 0:02:12.8]}
19... Rxf7 {[%clk 0:01:00.8]} 20. Bxf7 {[%clk 0:02:13.7]} 20... Qe7 {[%clk
0:00:35.7]} 21. Bg6 {[%clk 0:02:11]} 21... Bg4 {[%clk 0:00:17.8]} 22. cxb4
{[%clk 0:02:09.8]} 22... axb4 {[%clk 0:00:18.7]} 23. Bb2 {[%clk 0:02:09.8]}
23... Rd8 {[%clk 0:00:18.6]} 24. h3 {[%clk 0:02:02.1]} 24... Be2 {[%clk
0:00:16]} 25. Rf2 {[%clk 0:01:58.2]} 25... Bb5 {[%clk 0:00:16.2]} 26. Qf1 {[%clk
0:01:55.4]} 26... Bxf1 {[%clk 0:00:15.7]} 27. Raxf1 {[%clk 0:01:55]} 27... Qc5
{[%clk 0:00:14.6]} 28. Re2 {[%clk 0:01:48.9]} 28... Ra8 {[%clk 0:00:12.9]} 29.
Bb1 {[%clk 0:01:48.1]} 29... Rd8 {[%clk 0:00:10.5]} 30. Kh2 {[%clk 0:01:46]}
30... b5 {[%clk 0:00:08.8]} 31. Rf5 {[%clk 0:01:45.7]} 31... Re8 {[%clk
0:00:08.4]} 32. Rc2 {[%clk 0:01:44.2]} 32... Qd6 {[%clk 0:00:08]} 33. Rcf2
{[%clk 0:01:42.5]} 33... c5 {[%clk 0:00:07.8]} 34. R2f3 {[%clk 0:01:41.1]} 34...
c4 {[%clk 0:00:07.8]} 35. Rf2 {[%clk 0:01:30.2]} 35... c3 {[%clk 0:00:07.7]} 36.
Bc1 {[%clk 0:01:31.1]} 36... Qd1 {[%clk 0:00:06.9]} 37. Rc2 {[%clk 0:01:29.4]}
37... e4 {[%clk 0:00:06]} 38. a3 {[%clk 0:01:27.8]} 38... bxa3 {[%clk
0:00:04.4]} 39. Rff2 {[%clk 0:01:27.9]} 39... b4 {[%clk 0:00:04.2]} 40. Rfe2
{[%clk 0:01:23]} 40... Qd6+ {[%clk 0:00:04.2]} 41. Kg1 {[%clk 0:01:22.7]} 41...
Nh5 {[%clk 0:00:04.6]} 42. Rf2 {[%clk 0:01:22.7]} 42... Ng3 {[%clk 0:00:04.7]}
43. Ra2 {[%clk 0:01:21.9]} 43... Qd1+ {[%clk 0:00:04.4]} 44. Kh2 {[%clk
0:01:22.5]} 44... Nf1+ {[%clk 0:00:04.5]} 45. Rxf1 {[%clk 0:01:18.9]} 45... Qxf1
{[%clk 0:00:05.4]} 46. Rc2 {[%clk 0:01:19.4]} 46... Qd1 {[%clk 0:00:03.8]} 47.
Kg3 {[%clk 0:01:18.4]} 47... a2 {[%clk 0:00:02.6]} 48. Rxa2 {[%clk 0:01:17.9]}
48... Qxc1 {[%clk 0:00:02.8]} 49. Bxe4 {[%clk 0:01:18.8]} 49... Qxe3+ {[%clk
0:00:02.8]} 50. Bf3 {[%clk 0:01:18.7]} 50... Qd3 {[%clk 0:00:02.5]} 51. Kf2
{[%clk 0:01:17.3]} 51... c2 {[%clk 0:00:02.7]} 52. Ra1 {[%clk 0:01:17.6]} 52...
Qd2+ {[%clk 0:00:02.8]} 53. Kg3 {[%clk 0:01:17.3]} 53... c1=Q {[%clk 0:00:03.7]}
54. Rxc1 {[%clk 0:01:17.9]} 54... Qxc1 {[%clk 0:00:04.6]} 55. h4 {[%clk
0:01:18.4]} 55... Qc5 {[%clk 0:00:05.5]} 56. h5 {[%clk 0:01:19.3]} 56... Qc3
{[%clk 0:00:06]} 57. Kg4 {[%clk 0:01:20.1]} 57... Qxb3 {[%clk 0:00:06.5]} 58.
Kf5 {[%clk 0:01:21]} 58... Qe6+ {[%clk 0:00:06.8]} 59. Kf4 {[%clk 0:01:18.5]}
59... Qe5+ {[%clk 0:00:07.7]} 60. Kg4 {[%clk 0:01:17.4]} 60... b3 {[%clk
0:00:08.6]} 0-1

[Event "Early-Titled-Tuesday-Blitz-April-02-2024"]
[Site "Chess.com"]
[Date "2024.04.02"]
[Round "11"]
[White "PawnEatingZombie"]
[Black "IsaqueGoncalvesSanto"]
[Result "1-0"]
[WhiteElo "2169"]
[BlackElo "1921"]
[TimeControl "180+1"]
[EndTime "10:07:32 PDT"]
[Termination "PawnEatingZombie won by checkmate"]

1. e4 {[%clk 0:03:00.9]} 1... e6 {[%clk 0:03:00.2]} 2. d4 {[%clk 0:03:00.4]}
2... d5 {[%clk 0:03:00.7]} 3. exd5 {[%clk 0:03:01.3]} 3... exd5 {[%clk
0:03:00.6]} 4. Bf4 {[%clk 0:03:02]} 4... Bd6 {[%clk 0:03:00.9]} 5. Qd2 {[%clk
0:03:01.8]} 5... Nf6 {[%clk 0:02:53.5]} 6. Nc3 {[%clk 0:03:01.8]} 6... O-O
{[%clk 0:02:50.5]} 7. O-O-O {[%clk 0:03:01.7]} 7... Bb4 {[%clk 0:02:47.4]} 8. f3
{[%clk 0:03:01]} 8... Bf5 {[%clk 0:02:42.9]} 9. g4 {[%clk 0:02:59.3]} 9... Bg6
{[%clk 0:02:42.2]} 10. h4 {[%clk 0:02:59.3]} 10... h5 {[%clk 0:02:29.7]} 11. Bd3
{[%clk 0:02:44.8]} 11... hxg4 {[%clk 0:02:08.7]} 12. fxg4 {[%clk 0:02:37]} 12...
Ne4 {[%clk 0:02:04.3]} 13. Bxe4 {[%clk 0:02:34]} 13... Bxe4 {[%clk 0:02:03.4]}
14. Rh2 {[%clk 0:02:33.4]} 14... Nd7 {[%clk 0:01:53.7]} 15. g5 {[%clk
0:02:27.7]} 15... Nb6 {[%clk 0:01:45.4]} 16. h5 {[%clk 0:02:23.7]} 16... Qe7
{[%clk 0:01:35.2]} 17. Nge2 {[%clk 0:01:52.6]} 17... Nc4 {[%clk 0:01:31.4]} 18.
Qe1 {[%clk 0:01:52.4]} 18... Nxb2 {[%clk 0:01:30.9]} 19. Kxb2 {[%clk 0:01:35.8]}
19... Ba3+ {[%clk 0:01:30.3]} 20. Ka1 {[%clk 0:01:35.1]} 20... Bxc2 {[%clk
0:01:22.2]} 21. Rd2 {[%clk 0:01:26.7]} 21... Be4 {[%clk 0:01:10]} 22. Be5 {[%clk
0:01:24.6]} 22... f6 {[%clk 0:01:02.9]} 23. gxf6 {[%clk 0:01:23.9]} 23... gxf6
{[%clk 0:01:02.9]} 24. Qg3+ {[%clk 0:01:08.2]} 24... Kh8 {[%clk 0:01:02.4]} 25.
Nf4 {[%clk 0:00:36.8]} 25... fxe5 {[%clk 0:00:42]} 26. Ng6+ {[%clk 0:00:35.7]}
26... Bxg6 {[%clk 0:00:34.5]} 27. hxg6+ {[%clk 0:00:35.5]} 27... Kg8 {[%clk
0:00:34.5]} 28. Qh3 {[%clk 0:00:13.2]} 28... Qg7 {[%clk 0:00:24.9]} 29. Qe6+
{[%clk 0:00:13.1]} 29... Rf7 {[%clk 0:00:22]} 30. gxf7+ {[%clk 0:00:12.8]} 30...
Kf8 {[%clk 0:00:22]} 31. Rdg2 {[%clk 0:00:10.3]} 31... Bb2+ {[%clk 0:00:07]} 32.
Kxb2 {[%clk 0:00:09.3]} 32... exd4 {[%clk 0:00:07.3]} 33. Rh8+ {[%clk
0:00:04.7]} 33... Qxh8 {[%clk 0:00:06.5]} 34. Rg8+ {[%clk 0:00:04.6]} 34... Qxg8
{[%clk 0:00:06.3]} 35. fxg8=Q# {[%clk 0:00:05.5]} 1-0

[Event "Early-Titled-Tuesday-Blitz-April-02-2024"]
[Site "Chess.com"]
[Date "2024.04.02"]
[Round "11"]
[White "DvaHrasta"]
[Black "Kildepiotr"]
[Result "1/2-1/2"]
[WhiteElo "2537"]
[BlackElo "2719"]
[TimeControl "180+1"]
[EndTime "10:07:33 PDT"]
[Termination "Game drawn - insufficient material"]

1. c4 {[%clk 0:03:00.9]} 1... g6 {[%clk 0:02:57.2]} 2. g3 {[%clk 0:03:00.9]}
2... Bg7 {[%clk 0:02:58.1]} 3. Bg2 {[%clk 0:03:01.3]} 3... Nc6 {[%clk
0:02:58.8]} 4. Nc3 {[%clk 0:03:01.2]} 4... d6 {[%clk 0:02:59.3]} 5. Nf3 {[%clk
0:03:01.1]} 5... e5 {[%clk 0:02:59.7]} 6. O-O {[%clk 0:03:00.7]} 6... f5 {[%clk
0:03:00.2]} 7. d3 {[%clk 0:03:01.1]} 7... Nf6 {[%clk 0:03:00.7]} 8. Rb1 {[%clk
0:03:01]} 8... a5 {[%clk 0:03:01.1]} 9. a3 {[%clk 0:03:01]} 9... O-O {[%clk
0:03:01.7]} 10. b4 {[%clk 0:03:01.4]} 10... axb4 {[%clk 0:03:02.6]} 11. axb4
{[%clk 0:03:01.8]} 11... h6 {[%clk 0:03:02.2]} 12. b5 {[%clk 0:03:02.1]} 12...
Ne7 {[%clk 0:03:02.5]} 13. Ne1 {[%clk 0:02:58.1]} 13... g5 {[%clk 0:03:00.9]}
14. Nc2 {[%clk 0:02:58.2]} 14... Qe8 {[%clk 0:02:54.8]} 15. Nb4 {[%clk
0:02:57.1]} 15... f4 {[%clk 0:02:50.9]} 16. Ncd5 {[%clk 0:02:49.7]} 16... Nexd5
{[%clk 0:02:47.9]} 17. Nxd5 {[%clk 0:02:48]} 17... Nxd5 {[%clk 0:02:40.9]} 18.
cxd5 {[%clk 0:02:46.2]} 18... Qh5 {[%clk 0:02:36.1]} 19. f3 {[%clk 0:02:33.1]}
19... g4 {[%clk 0:02:33.5]} 20. b6 {[%clk 0:02:21.9]} 20... gxf3 {[%clk
0:02:15]} 21. Bxf3 {[%clk 0:02:15.3]} 21... Qh3 {[%clk 0:01:59.3]} 22. Bg2
{[%clk 0:01:59.9]} 22... Qg4 {[%clk 0:01:58.8]} 23. e3 {[%clk 0:01:50.6]} 23...
fxg3 {[%clk 0:01:54]} 24. Qxg4 {[%clk 0:01:49.3]} 24... gxh2+ {[%clk 0:01:52.4]}
25. Kxh2 {[%clk 0:01:49.1]} 25... Bxg4 {[%clk 0:01:52]} 26. Rxf8+ {[%clk
0:01:44.6]} 26... Bxf8 {[%clk 0:01:49.8]} 27. bxc7 {[%clk 0:01:42.7]} 27... Bc8
{[%clk 0:01:46.8]} 28. Bh3 {[%clk 0:01:32.1]} 28... Kf7 {[%clk 0:01:27.2]} 29.
e4 {[%clk 0:01:26.1]} 29... Ke8 {[%clk 0:01:21.2]} 30. Bxc8 {[%clk 0:01:24.4]}
30... Rxc8 {[%clk 0:01:22.1]} 31. Rxb7 {[%clk 0:01:20.5]} 31... Kd7 {[%clk
0:01:22.5]} 32. Kh3 {[%clk 0:01:19]} 32... Rxc7 {[%clk 0:01:22.9]} 33. Rxc7+
{[%clk 0:01:15.1]} 33... Kxc7 {[%clk 0:01:23.8]} 34. Kg4 {[%clk 0:01:15.2]}
34... Kb6 {[%clk 0:01:21.1]} 35. Be3+ {[%clk 0:01:11]} 35... Kb5 {[%clk
0:01:21.2]} 36. d4 {[%clk 0:01:11.6]} 36... exd4 {[%clk 0:01:16.8]} 37. Bxd4
{[%clk 0:01:11.2]} 37... Kc4 {[%clk 0:01:17.5]} 38. Bf6 {[%clk 0:01:05]} 38...
Kd3 {[%clk 0:01:17.7]} 39. Kf5 {[%clk 0:00:59.8]} 39... h5 {[%clk 0:01:17.8]}
40. Bg5 {[%clk 0:00:45.8]} 40... Kd4 {[%clk 0:01:00.5]} 41. Bh4 {[%clk 0:00:36]}
41... Ke3 {[%clk 0:00:52.7]} 42. Bf6 {[%clk 0:00:31]} 42... Kf3 {[%clk
0:00:48.1]} 43. e5 {[%clk 0:00:22.7]} 43... dxe5 {[%clk 0:00:46.4]} 44. Kxe5
{[%clk 0:00:22.9]} 44... Kg4 {[%clk 0:00:45.4]} 45. Ke6 {[%clk 0:00:20.6]} 45...
h4 {[%clk 0:00:41.8]} 46. Be7 {[%clk 0:00:17.7]} 46... Bxe7 {[%clk 0:00:37.5]}
47. Kxe7 {[%clk 0:00:17.7]} 47... h3 {[%clk 0:00:38.4]} 48. d6 {[%clk
0:00:18.2]} 48... h2 {[%clk 0:00:39.1]} 49. d7 {[%clk 0:00:18.6]} 49... h1=Q
{[%clk 0:00:39.4]} 50. d8=Q {[%clk 0:00:18.4]} 50... Qh4+ {[%clk 0:00:39.4]} 51.
Kd7 {[%clk 0:00:18.6]} 51... Qh7+ {[%clk 0:00:39.1]} 52. Qe7 {[%clk 0:00:18.5]}
52... Qd3+ {[%clk 0:00:39]} 53. Qd6 {[%clk 0:00:18.7]} 53... Qxd6+ {[%clk
0:00:39]} 54. Kxd6 {[%clk 0:00:18.6]} 1/2-1/2

[Event "Early-Titled-Tuesday-Blitz-April-02-2024"]
[Site "Chess.com"]
[Date "2024.04.02"]
[Round "11"]
[White "KubaGepard"]
[Black "Witik"]
[Result "1/2-1/2"]
[WhiteElo "2607"]
[BlackElo "2790"]
[TimeControl "180+1"]
[EndTime "10:07:36 PDT"]
[Termination "Game drawn by repetition"]

1. d4 {[%clk 0:03:00.9]} 1... Nf6 {[%clk 0:03:00.1]} 2. Nf3 {[%clk 0:03:00.8]}
2... g6 {[%clk 0:03:00.7]} 3. g3 {[%clk 0:03:00.8]} 3... Bg7 {[%clk 0:03:00.9]}
4. Bg2 {[%clk 0:03:01.6]} 4... d5 {[%clk 0:03:01.3]} 5. O-O {[%clk 0:03:01]}
5... O-O {[%clk 0:03:02]} 6. c4 {[%clk 0:03:01.6]} 6... c6 {[%clk 0:03:02.6]} 7.
Ne5 {[%clk 0:03:02.1]} 7... Be6 {[%clk 0:02:55.8]} 8. cxd5 {[%clk 0:03:01.2]}
8... cxd5 {[%clk 0:02:55.1]} 9. Nc3 {[%clk 0:02:59.2]} 9... Nc6 {[%clk
0:02:54.8]} 10. Qa4 {[%clk 0:02:50.3]} 10... Qb6 {[%clk 0:02:47.1]} 11. Nxc6
{[%clk 0:02:30.3]} 11... bxc6 {[%clk 0:02:48]} 12. e3 {[%clk 0:02:29.9]} 12...
c5 {[%clk 0:02:44.2]} 13. dxc5 {[%clk 0:02:28.5]} 13... Qxc5 {[%clk 0:02:44.3]}
14. Rd1 {[%clk 0:02:27.5]} 14... Rab8 {[%clk 0:02:38.5]} 15. a3 {[%clk
0:02:15.1]} 15... Rfc8 {[%clk 0:02:36.4]} 16. Ne2 {[%clk 0:02:10.3]} 16... Bg4
{[%clk 0:02:23.6]} 17. f3 {[%clk 0:02:05.8]} 17... Bd7 {[%clk 0:02:22.5]} 18.
Qd4 {[%clk 0:02:03.2]} 18... Qc2 {[%clk 0:01:55.7]} 19. Qd2 {[%clk 0:01:59.1]}
19... Ba4 {[%clk 0:01:40.6]} 20. Qxc2 {[%clk 0:01:58.9]} 20... Rxc2 {[%clk
0:01:41.5]} 21. Re1 {[%clk 0:01:54.8]} 21... Nd7 {[%clk 0:01:26.8]} 22. Nd4
{[%clk 0:01:52.5]} 22... Rcc8 {[%clk 0:01:23.8]} 23. f4 {[%clk 0:01:52]} 23...
e5 {[%clk 0:01:20.7]} 24. fxe5 {[%clk 0:01:50.6]} 24... Nxe5 {[%clk 0:01:21.6]}
25. Bxd5 {[%clk 0:01:49.6]} 25... Nd3 {[%clk 0:01:20.1]} 26. Rf1 {[%clk
0:01:48.2]} 26... Rc7 {[%clk 0:01:12.9]} 27. b3 {[%clk 0:01:43.8]} 27... Be8
{[%clk 0:01:11.9]} 28. Bd2 {[%clk 0:01:41.7]} 28... Rd8 {[%clk 0:01:10.2]} 29.
Bc4 {[%clk 0:01:40.8]} 29... Rxd4 {[%clk 0:01:08.9]} 30. exd4 {[%clk 0:01:37.8]}
30... Bxd4+ {[%clk 0:01:09.7]} 31. Kg2 {[%clk 0:01:36.8]} 31... Bc6+ {[%clk
0:01:04.8]} 32. Kh3 {[%clk 0:01:34.8]} 32... Bxa1 {[%clk 0:00:53.7]} 33. Rxa1
{[%clk 0:01:32.1]} 33... Nf2+ {[%clk 0:00:51]} 34. Kh4 {[%clk 0:01:31.4]} 34...
Kg7 {[%clk 0:00:32.8]} 35. Bc3+ {[%clk 0:01:28.3]} 35... f6 {[%clk 0:00:33]} 36.
Bxf6+ {[%clk 0:01:26.5]} 36... Kxf6 {[%clk 0:00:33]} 37. Rf1 {[%clk 0:01:26.5]}
37... g5+ {[%clk 0:00:31.8]} 38. Kh5 {[%clk 0:01:24.2]} 38... Bf3+ {[%clk
0:00:28.3]} 39. g4 {[%clk 0:01:20.3]} 39... Bxg4+ {[%clk 0:00:16.9]} 40. Kh6
{[%clk 0:01:20]} 40... Bf3 {[%clk 0:00:06.1]} 41. Rxf2 {[%clk 0:01:10.8]} 41...
g4 {[%clk 0:00:06.7]} 42. h3 {[%clk 0:00:49.9]} 42... Kf5 {[%clk 0:00:07.2]} 43.
hxg4+ {[%clk 0:00:48.9]} 43... Kxg4 {[%clk 0:00:08.1]} 44. Be2 {[%clk
0:00:48.1]} 44... Bxe2 {[%clk 0:00:05.1]} 45. Rxe2 {[%clk 0:00:48.3]} 45... Rc3
{[%clk 0:00:05.8]} 46. Re4+ {[%clk 0:00:48.3]} 46... Kf5 {[%clk 0:00:05.9]} 47.
Rb4 {[%clk 0:00:48.8]} 47... Rh3+ {[%clk 0:00:06.1]} 48. Kg7 {[%clk 0:00:48.9]}
48... h5 {[%clk 0:00:06.9]} 49. Rb5+ {[%clk 0:00:46]} 49... Kf4 {[%clk
0:00:06.4]} 50. Rb4+ {[%clk 0:00:45.1]} 50... Kf5 {[%clk 0:00:06.3]} 51. Rb5+
{[%clk 0:00:44.9]} 51... Kf4 {[%clk 0:00:06.5]} 52. Rb4+ {[%clk 0:00:45.3]}
52... Kf5 {[%clk 0:00:07]} 1/2-1/2

[Event "Early-Titled-Tuesday-Blitz-April-02-2024"]
[Site "Chess.com"]
[Date "2024.04.02"]
[Round "11"]
[White "aljado"]
[Black "rhwr"]
[Result "0-1"]
[WhiteElo "2139"]
[BlackElo "2259"]
[TimeControl "180+1"]
[EndTime "10:07:38 PDT"]
[Termination "rhwr won on time"]

1. e4 {[%clk 0:03:00.9]} 1... c5 {[%clk 0:02:59.7]} 2. Nf3 {[%clk 0:02:59.7]}
2... d6 {[%clk 0:03:00.1]} 3. c3 {[%clk 0:02:58.7]} 3... Nf6 {[%clk 0:02:59.1]}
4. Bc4 {[%clk 0:02:59.2]} 4... e6 {[%clk 0:02:58.9]} 5. Qe2 {[%clk 0:02:58.6]}
5... a6 {[%clk 0:02:57.6]} 6. a4 {[%clk 0:02:57.3]} 6... Be7 {[%clk 0:02:57.2]}
7. O-O {[%clk 0:02:52.5]} 7... O-O {[%clk 0:02:57]} 8. d4 {[%clk 0:02:52.9]}
8... Nxe4 {[%clk 0:02:49]} 9. Qxe4 {[%clk 0:02:50.2]} 9... d5 {[%clk 0:02:48.8]}
10. Qe2 {[%clk 0:02:47.3]} 10... dxc4 {[%clk 0:02:48.4]} 11. Qxc4 {[%clk
0:02:47.6]} 11... Nd7 {[%clk 0:02:44]} 12. Be3 {[%clk 0:02:44.9]} 12... Nb6
{[%clk 0:02:39.7]} 13. Qe2 {[%clk 0:02:40]} 13... Qc7 {[%clk 0:02:23.6]} 14.
Nbd2 {[%clk 0:02:37.5]} 14... Nd5 {[%clk 0:02:20.8]} 15. Bg5 {[%clk 0:02:07.4]}
15... Bxg5 {[%clk 0:02:09.1]} 16. Nxg5 {[%clk 0:02:06.8]} 16... h6 {[%clk
0:02:09.8]} 17. Ngf3 {[%clk 0:02:03.6]} 17... Rb8 {[%clk 0:02:03.8]} 18. Ne4
{[%clk 0:01:58.7]} 18... cxd4 {[%clk 0:02:01.2]} 19. Nxd4 {[%clk 0:01:56.1]}
19... e5 {[%clk 0:02:00.1]} 20. Nf3 {[%clk 0:01:50.1]} 20... Bg4 {[%clk
0:01:55.2]} 21. Rad1 {[%clk 0:01:41.9]} 21... Nf4 {[%clk 0:01:54.3]} 22. Qe3
{[%clk 0:01:38.5]} 22... Rfe8 {[%clk 0:01:48]} 23. Ng3 {[%clk 0:01:36]} 23... e4
{[%clk 0:01:40.1]} 24. Nd4 {[%clk 0:01:22.1]} 24... Bxd1 {[%clk 0:01:34.3]} 25.
Rxd1 {[%clk 0:01:22.6]} 25... Nd5 {[%clk 0:01:28.7]} 26. Qe2 {[%clk 0:01:16.2]}
26... e3 {[%clk 0:01:25.6]} 27. Ngf5 {[%clk 0:01:04.5]} 27... Qf4 {[%clk
0:00:53.3]} 28. f3 {[%clk 0:00:31.2]} 28... Qg5 {[%clk 0:00:45]} 29. Qc4 {[%clk
0:00:18.6]} 29... Nf4 {[%clk 0:00:40.3]} 30. Ng3 {[%clk 0:00:18.2]} 30... Rbd8
{[%clk 0:00:30.8]} 31. Re1 {[%clk 0:00:15]} 31... h5 {[%clk 0:00:24.1]} 32. h4
{[%clk 0:00:12.2]} 32... Qxh4 {[%clk 0:00:21.8]} 33. Ndf5 {[%clk 0:00:12.7]}
33... Qg5 {[%clk 0:00:21.4]} 34. Qc7 {[%clk 0:00:01.6]} 34... h4 {[%clk
0:00:19.2]} 35. Rxe3 {[%clk 0:00:02.2]} 35... hxg3 {[%clk 0:00:15.5]} 0-1

[Event "Early-Titled-Tuesday-Blitz-April-02-2024"]
[Site "Chess.com"]
[Date "2024.04.02"]
[Round "11"]
[White "Janh4"]
[Black "maurovargas01"]
[Result "1-0"]
[WhiteElo "2165"]
[BlackElo "1865"]
[TimeControl "180+1"]
[EndTime "10:07:38 PDT"]
[Termination "Janh4 won by checkmate"]

1. d4 {[%clk 0:03:00.9]} 1... c6 {[%clk 0:02:59]} 2. Nc3 {[%clk 0:02:59.7]} 2...
d5 {[%clk 0:02:59.9]} 3. Bf4 {[%clk 0:02:59.8]} 3... Nf6 {[%clk 0:02:59]} 4. e3
{[%clk 0:02:59.7]} 4... Bg4 {[%clk 0:02:58.1]} 5. f3 {[%clk 0:03:00.3]} 5... Bh5
{[%clk 0:02:57.4]} 6. g4 {[%clk 0:03:00.9]} 6... Bg6 {[%clk 0:02:57.2]} 7. h4
{[%clk 0:03:01.5]} 7... h5 {[%clk 0:02:57.1]} 8. g5 {[%clk 0:03:02.1]} 8... Nfd7
{[%clk 0:02:54.4]} 9. Bd3 {[%clk 0:03:02.7]} 9... Bxd3 {[%clk 0:02:49.7]} 10.
Qxd3 {[%clk 0:03:03.6]} 10... Qb6 {[%clk 0:02:21.1]} 11. Nge2 {[%clk 0:02:55.5]}
11... Na6 {[%clk 0:02:19.4]} 12. O-O-O {[%clk 0:02:45.7]} 12... O-O-O {[%clk
0:02:07.5]} 13. Kb1 {[%clk 0:02:32.6]} 13... e6 {[%clk 0:01:58.3]} 14. Nc1
{[%clk 0:02:32.2]} 14... Nb4 {[%clk 0:01:44.6]} 15. Qd2 {[%clk 0:02:21.2]} 15...
Na6 {[%clk 0:01:32.9]} 16. Nb3 {[%clk 0:02:17]} 16... Be7 {[%clk 0:01:20.8]} 17.
a3 {[%clk 0:02:06.6]} 17... Rde8 {[%clk 0:01:03.4]} 18. Qh2 {[%clk 0:01:55.1]}
18... c5 {[%clk 0:00:57.5]} 19. Na4 {[%clk 0:01:48.7]} 19... Qc6 {[%clk
0:00:53.8]} 20. Naxc5 {[%clk 0:01:41.3]} 20... Naxc5 {[%clk 0:00:54.7]} 21. dxc5
{[%clk 0:01:40.1]} 21... Nxc5 {[%clk 0:00:55.3]} 22. Nxc5 {[%clk 0:01:40]} 22...
Qxc5 {[%clk 0:00:56.2]} 23. Rd3 {[%clk 0:01:36.5]} 23... Kd7 {[%clk 0:00:49]}
24. Rc3 {[%clk 0:01:35]} 24... Qb6 {[%clk 0:00:46]} 25. Rc7+ {[%clk 0:01:17.1]}
25... Kd8 {[%clk 0:00:44.7]} 26. Rd1 {[%clk 0:00:55.4]} 26... Bxa3 {[%clk
0:00:40.7]} 27. b3 {[%clk 0:00:51.8]} 27... Re7 {[%clk 0:00:39.3]} 28. Rxe7
{[%clk 0:00:44.4]} 28... Kxe7 {[%clk 0:00:40.2]} 29. Qd2 {[%clk 0:00:29.5]}
29... Rc8 {[%clk 0:00:35.2]} 30. Be5 {[%clk 0:00:28.7]} 30... a5 {[%clk
0:00:28.3]} 31. Bb2 {[%clk 0:00:14.7]} 31... Bb4 {[%clk 0:00:27.2]} 32. Qd3
{[%clk 0:00:14.2]} 32... Bc5 {[%clk 0:00:23.5]} 33. e4 {[%clk 0:00:11.4]} 33...
Rd8 {[%clk 0:00:20.1]} 34. Bxg7 {[%clk 0:00:07.8]} 34... dxe4 {[%clk 0:00:17.7]}
35. Qxd8+ {[%clk 0:00:05.5]} 35... Qxd8 {[%clk 0:00:18.6]} 36. Bf6+ {[%clk
0:00:05.6]} 36... Ke8 {[%clk 0:00:14.3]} 37. Rxd8# {[%clk 0:00:05.7]} 1-0